[Event "94th FRA-ch 2019"]
[Site "Chartres"]
[Date "2019.08.23"]
[Round "7.5"]
[White "Feller, Sebastien"]
[Black "Favarel, Julien"]
[Result "1/2-1/2"]
[ECO "D00"]
[WhiteElo "2577"]
[BlackElo "2333"]
[Annotator "ChessBase"]
[PlyCount "92"]
[EventDate "2019.08.17"]
[EventType "tourn"]
[EventCountry "FRA"]
[SourceTitle "playchess.com"]
[Source "ChessBase"]
[SourceQuality "1"]
[TimeControl "40/5400+30:1800+30"]

1. d4 {[%emt 0:07:23]} d5 {[%emt 0:00:00]} 2. Bg5 {[%emt 0:00:27]} Nd7 {[%emt 0:04:46]} 3. Nd2 {[%emt 0:05:53]} h6 {[%emt 0:03:20]} 4. Bh4 {[%emt 0:01:00]} Ngf6 {[%emt 0:00:46]} 5. e3 {[%emt 0:01:13]} e6 {[%emt 0:01:25]} 6. c3 {[%emt 0:01:13]} Be7 {[%emt 0:01:53]} 7. f4 {[%emt 0:03:26]} b6 {[%emt 0:15:42]} 8. Bd3 {[%emt 0:13:55]} Bb7 {[%emt 0:01:48]} 9. Qf3 {[%emt 0:02:52]} c5 {[%emt 0:04:25]} 10. Bxf6 {[%emt 0:10:19]} Bxf6 {[%emt 0:02:38]} 11. Qe2 {[%emt 0:03:05]} a6 {[%emt 0:11:07]} 12. Ngf3 {[%emt 0:00:33]} Be7 {[%emt 0:13:52]} 13. O-O {[%emt 0:03:47]} O-O {[%emt 0:05:07]} 14. Ne5 {[%emt 0:01:55]} b5 {[%emt 0:05:28]} 15. Rf2 {[%emt 0:07:21]} b4 {[%emt 0:04:56]} 16. Raf1 {[%emt 0:01:42]} Bd6 {[%emt 0:04:57]} 17. g4 {[%emt 0:07:34]} Bxe5 {[%emt 0:04:24]} 18. fxe5 {[%emt 0:00:53]} f6 {[%emt 0:00:29]} 19. exf6 {[%emt 0:04:02]} Rxf6 {[%emt 0:00:15]} 20. cxb4 {[%emt 0:03:07]} cxb4 {[%emt 0:00:42]} 21. Nb3 {[%emt 0:02:19]} Rxf2 {[%emt 0:01:04]} 22. Qxf2 {[%emt 0:00:06]} Qe7 {[%emt 0:01:04]} 23. Na5 {[%emt 0:07:01]} Nf6 {[%emt 0:01:20]} 24. Qf4 {[%emt 0:00:11]} Rc8 {[%emt 0:03:04]} 25. g5 {[%emt 0:03:56]} hxg5 {[%emt 0:00:43]} 26. Qxg5 {[%emt 0:00:01]} Rc7 {[%emt 0:00:40]} 27. Nb3 {[%emt 0:01:44]} Bc8 {[%emt 0:01:54]} 28. Qg3 {[%emt 0:01:59]} e5 {[%emt 0:02:12]} 29. Bg6 {[%emt 0:02:42]} exd4 {[%emt 0:01:34]} 30. Nxd4 {[%emt 0:00:17]} Ne4 {[%emt 0:01:14]} 31. Bxe4 {[%emt 0:01:41]} dxe4 {[%emt 0:00:24]} 32. Kh1 {[%emt 0:00:56]} Rc5 {[%emt 0:00:46]} 33. Rg1 {[%emt 0:00:15]} Rh5 {[%emt 0:01:04]} 34. Qb8 {[%emt 0:01:09]} Qf8 {[%emt 0:00:45]} 35. Rc1 {[%emt 0:00:39]} Bh3 {[%emt 0:00:32]} 36. Qxf8+ {[%emt 0:00:23]} Kxf8 {[%emt 0:00:01]} 37. Ne2 {[%emt 0:00:39]} Bg4 {[%emt 0:00:35]} 38. Nf4 {[%emt 0:00:22]} Bf3+ {[%emt 0:00:29]} 39. Kg1 {[%emt 0:00:02]} Ra5 {[%emt 0:00:51]} 40. a3 {[%emt 0:01:18]} bxa3 {[%emt 0:00:27]} 41. bxa3 {[%emt 0:00:55]} Rxa3 {[%emt 0:10:49]} 42. Kf2 {[%emt 0:03:00]} Kg8 {[%emt 0:03:29]} 43. h4 {[%emt 0:03:40]} Kh7 {[%emt 0:03:21]} 44. Rc6 {[%emt 0:03:22]} Bg4 {[%emt 0:03:12]} 45. Ng6 {[%emt 0:03:08]} Bf5 {[%emt 0:02:25]} 46. Ne5 {[%emt 0:00:05]} Ra5 {[%emt 0:11:01]} 1/2-1/2

[Event "94th FRA-ch 2019"]
[Site "Chartres"]
[Date "2019.08.24"]
[Round "8.2"]
[White "Edouard, Romain"]
[Black "Moussard, Jules"]
[Result "0-1"]
[ECO "A80"]
[WhiteElo "2650"]
[BlackElo "2595"]
[Annotator "RC"]
[PlyCount "136"]
[EventDate "2019.08.17"]
[EventType "tourn"]
[EventCountry "FRA"]
[SourceTitle "playchess.com"]
[Source "ChessBase"]
[SourceQuality "1"]
[TimeControl "40/5400+30:1800+30"]

1. d4 {[%emt 0:00:00]} f5 {[%emt 0:00:00]} 2. Bf4 {[%emt 0:00:00]} Nf6 {[%emt 0:00:35]} 3. e3 {[%emt 0:00:00]} g6 {[%emt 0:03:05]} 4. h4 {[%emt 0:00:20]} h6 {[%emt 0:00:49]} 5. Qf3 {[%emt 0:05:21]} d6 {[%emt 0:01:52]} 6. Nc3 {[%emt 0:00:27]} Bg7 {[%emt 0:02:19]} 7. Bc4 {[%emt 0:06:31]} e6 {[%emt 0:01:54]} 8. O-O-O {[%emt 0:13:10]} Nc6 {[%emt 0:06:48]} 9. Nge2 {[%emt 0:07:05]} Bd7 {[%emt 0:15:27]} 10. Qg3 {[%emt 0:13:06]} Ne7 {[%emt 0:05:17]} 11. f3 {[%emt 0:01:03]} Rb8 {[%emt 0:06:36]} 12. e4 {[%emt 0:07:19]} b5 {[%emt 0:12:17]} 13. Bd3 {[%emt 0:00:34]} b4 {[%emt 0:07:30]} 14. Nb1 {[%emt 0:00:08]} Nh5 {[%emt 0:01:05]} 15. Qf2 {[%emt 0:01:13]} fxe4 {[%emt 0:00:47]} 16. Bxe4 {[%emt 0:00:30]} O-O {[%emt 0:01:46]} 17. Bh2 {[%emt 0:05:53]} Nf6 {[%emt 0:05:59]} 18. Qe3 {[%emt 0:03:30]} Ned5 {[%emt 0:00:51]} 19. Qd2 {[%emt 0:01:07]} Nxe4 {[%emt 0:00:05]} 20. fxe4 {[%emt 0:00:02]} Nf6 {[%emt 0:00:09]} 21. Nf4 {[%emt 0:02:09]} Ng4 {[%emt 0:05:08]} 22. Nxg6 {[%emt 0:04:33]} Rf2 {[%emt 0:00:11]} 23. Qd3 {[%emt 0:00:02]} Bb5 {[%emt 0:05:55]} 24. Qh3 {[%emt 0:04:33]} h5 {[%emt 0:00:09]} 25. Nf4 {[%emt 0:00:31]} Nxh2 {[%emt 0:08:21]} 26. Qxe6+ {[%emt 0:01:27]} Kh8 {[%emt 0:00:02]} 27. Nxh5 {[%emt 0:01:26]} Qxh4 {[%emt 0:04:26]} 28. Nxg7 {[%emt 0:04:16]} Kxg7 {[%emt 0:00:01]} 29. Nd2 {[%emt 0:00:09]} Qg4 {[%emt 0:01:26]} 30. Qb3 {[%emt 0:01:39]} Be2 {[%emt 0:01:25]} 31. Qe3 {[%emt 0:00:41]} Rbf8 {[%emt 0:01:59]} 32. Rdg1 {[%emt 0:01:28]} Qh4 {[%emt 0:00:17]} 33. d5 {[%emt 0:08:03]} R8f6 {[%emt 0:01:25]} 34. e5 {[%emt 0:01:37]} R6f5 {[%emt 0:00:32]} 35. e6 {[%emt 0:01:05]} Kf8 {[%emt 0:00:07]} 36. Qxa7 {[%emt 0:02:12]} Bh5 {[%emt 0:00:19]} 37. Nf3 {[%emt 0:01:51]} Qf4+ {[%emt 0:01:03]} 38. Kb1 {[%emt 0:00:01]} Rxc2 {[%emt 0:00:28]} 39. Kxc2 {[%emt 0:01:19]} Qe4+ {[%emt 0:00:01]} 40. Kc1 {[%emt 0:00:29]} Rxd5 {[%emt 0:00:09]} 41. e7+ {[%emt 0:21:43]} Kg7 {[%emt 0:00:58]} 42. Re1 {[%emt 0:01:56]} Qf5 {[%emt 0:00:42]} 43. e8=N+ {[%emt 0:03:08]} Bxe8 {[%emt 0:01:55]} 44. Qxc7+ {[%emt 0:07:03]} Bf7 {[%emt 0:00:32]} 45. Rxh2 {[%emt 0:00:19]} Rc5+ {[%emt 0:00:12]} 46. Qxc5 {[%emt 0:00:01]} Qxc5+ {[%emt 0:01:30]} 47. Kb1 {[%emt 0:00:02]} Qc4 {[%emt 0:00:06]} 48. Rh4 {[%emt 0:01:33]} Qxa2+ {[%emt 0:00:05]} 49. Kc1 {[%emt 0:00:05]} Bg6 {[%emt 0:00:39]} 50. Rd4 {[%emt 0:00:58]} Qb1+ {[%emt 0:00:11]} 51. Kd2 {[%emt 0:00:01]} Qxb2+ {[%emt 0:00:05]} 52. Ke3 {[%emt 0:00:02]} b3 {[%emt 0:00:57]} 53. Rxd6 {[%emt 0:00:41]} Qc3+ {[%emt 0:00:25]} 54. Kf4 {[%emt 0:00:39]} Qc7 {[%emt 0:09:36]} 55. Ree6 {[%emt 0:00:01]} Bf7 {[%emt 0:00:13]} 56. Rf6 {[%emt 0:00:13]} b2 {[%emt 0:00:06]} 57. Nd2 {[%emt 0:00:02]} Bd5 {[%emt 0:02:39]} 58. Ke3 {[%emt 0:02:35]} Qc3+ {[%emt 0:04:00]} 59. Ke2 {[%emt 0:00:01]} Bc4+ {[%emt 0:03:00]} 60. Kf2 {[%emt 0:00:02]} Bd3 {[%emt 0:00:12]} 61. Ke3 {[%emt 0:00:02]} Bg6+ {[%emt 0:00:34]} 62. Kf2 {[%emt 0:00:39]} Qc5+ {[%emt 0:00:17]} 63. Kf3 {[%emt 0:00:30]} Bh5+ {[%emt 0:00:23]} 64. Kg3 {[%emt 0:01:13]} Qe3+ {[%emt 0:00:04]} 65. Kh2 {[%emt 0:00:16]} Qe5+ {[%emt 0:01:15]} 66. Kg1 {[%emt 0:00:03]} Bf7 {[%emt 0:00:17]} 67. Kf2 {[%emt 0:00:42]} Bc4 {[%emt 0:02:17]} 68. Nxc4 {[%emt 0:01:02]} Qc5+ {[%emt 0:12:15] Nd2 Qe5 Kg1 Qxf6 Rd3 Kh6 Rh3+ Kg6 Rg3+ Kh5 Rf3 Qd4+ Rf2 Kg4} 0-1

[Event "94th FRA-ch 2019"]
[Site "Chartres"]
[Date "2019.08.24"]
[Round "8.5"]
[White "Maze, Sebastien"]
[Black "Feller, Sebastien"]
[Result "1/2-1/2"]
[ECO "B30"]
[WhiteElo "2554"]
[BlackElo "2577"]
[Annotator "ChessBase"]
[PlyCount "74"]
[EventDate "2019.08.17"]
[EventType "tourn"]
[EventCountry "FRA"]
[SourceTitle "playchess.com"]
[Source "ChessBase"]
[SourceQuality "1"]
[TimeControl "40/5400+30:1800+30"]

1. e4 {[%emt 0:00:00]} c5 {[%emt 0:05:07]} 2. Nc3 {[%emt 0:00:00]} Nc6 {[%emt 0:00:22]} 3. Nf3 {[%emt 0:00:00]} e5 {[%emt 0:00:05]} 4. Bc4 {[%emt 0:00:43]} g6 {[%emt 0:01:10]} 5. a3 {[%emt 0:03:22]} Bg7 {[%emt 0:06:30]} 6. d3 {[%emt 0:01:46]} h6 {[%emt 0:00:23]} 7. Nd2 {[%emt 0:06:45]} d6 {[%emt 0:06:04]} 8. Nf1 {[%emt 0:00:16]} Nge7 {[%emt 0:02:50]} 9. Ne3 {[%emt 0:00:27]} O-O {[%emt 0:03:36]} 10. b4 {[%emt 0:09:30]} Kh7 {[%emt 0:13:54]} 11. b5 {[%emt 0:04:08]} Nd4 {[%emt 0:01:39]} 12. Ncd5 {[%emt 0:01:41]} f5 {[%emt 0:13:56]} 13. c3 {[%emt 0:04:21]} Ne6 {[%emt 0:04:27]} 14. Ra2 {[%emt 0:15:09]} Nc7 {[%emt 0:06:55]} 15. Nxc7 {[%emt 0:02:55]} Qxc7 {[%emt 0:00:05]} 16. f3 {[%emt 0:02:08]} Bd7 {[%emt 0:07:27]} 17. Qb3 {[%emt 0:01:20]} a6 {[%emt 0:03:50]} 18. b6 {[%emt 0:05:21]} Qd8 {[%emt 0:00:16]} 19. a4 {[%emt 0:00:03]} Bc6 {[%emt 0:07:35]} 20. a5 {[%emt 0:01:28]} Qd7 {[%emt 0:01:58]} 21. Be6 {[%emt 0:01:35]} Qe8 {[%emt 0:00:18]} 22. O-O {[%emt 0:04:04]} Rd8 {[%emt 0:00:56]} 23. Re1 {[%emt 0:05:52]} Bd7 {[%emt 0:03:52]} 24. Bc4 {[%emt 0:04:11]} Bc6 {[%emt 0:00:01]} 25. Bd2 {[%emt 0:01:41]} f4 {[%emt 0:01:34]} 26. Nd5 {[%emt 0:01:18]} Bxd5 {[%emt 0:00:02]} 27. exd5 {[%emt 0:03:40]} Qf7 {[%emt 0:03:10]} 28. Qd1 {[%emt 0:06:56]} Nf5 {[%emt 0:00:08]} 29. Qe2 {[%emt 0:00:04]} h5 {[%emt 0:00:38]} 30. Qe4 {[%emt 0:00:14]} Rde8 {[%emt 0:01:25]} 31. Bc1 {[%emt 0:00:42]} Bh6 {[%emt 0:00:49]} 32. Rae2 {[%emt 0:01:12]} Ne3 {[%emt 0:01:08]} 33. Bb3 {[%emt 0:04:44]} Qf6 {[%emt 0:01:45]} 34. Bxe3 {[%emt 0:04:18]} fxe3 {[%emt 0:01:30]} 35. Rf1 {[%emt 0:00:06]} Qg7 {[%emt 0:00:54]} 36. g3 {[%emt 0:00:11]} Re7 {[%emt 0:00:53]} 37. Bc2 {[%emt 0:00:51]} Rf6 {[%emt 0:00:28]} 1/2-1/2

[Event "94th FRA-ch 2019"]
[Site "Chartres"]
[Date "2019.08.25"]
[Round "9.1"]
[White "Feller, Sebastien"]
[Black "Cornette, Matthieu"]
[Result "1/2-1/2"]
[ECO "D39"]
[WhiteElo "2577"]
[BlackElo "2555"]
[Annotator "ChessBase"]
[PlyCount "57"]
[EventDate "2019.08.17"]
[EventType "tourn"]
[EventCountry "FRA"]
[SourceTitle "playchess.com"]
[Source "ChessBase"]
[SourceQuality "1"]
[TimeControl "40/5400+30:1800+30"]

1. d4 {[%emt 0:06:13]} Nf6 {[%emt 0:00:00]} 2. c4 {[%emt 0:00:05]} e6 {[%emt 0:00:00]} 3. Nf3 {[%emt 0:00:34]} d5 {[%emt 0:00:45]} 4. Nc3 {[%emt 0:03:41]} dxc4 {[%emt 0:01:08]} 5. e4 {[%emt 0:01:50]} Bb4 {[%emt 0:00:07]} 6. Bg5 {[%emt 0:06:52]} c5 {[%emt 0:00:46]} 7. e5 {[%emt 0:00:55]} cxd4 {[%emt 0:01:57]} 8. Qa4+ {[%emt 0:00:52]} Nc6 {[%emt 0:00:08]} 9. O-O-O {[%emt 0:00:36]} Bd7 {[%emt 0:02:59]} 10. Ne4 {[%emt 0:02:13]} Be7 {[%emt 0:00:26]} 11. exf6 {[%emt 0:00:27]} gxf6 {[%emt 0:00:05]} 12. Bh4 {[%emt 0:01:33]} Rc8 {[%emt 0:09:12]} 13. Kb1 {[%emt 0:04:37]} Na5 {[%emt 0:02:58]} 14. Qc2 {[%emt 0:01:11]} e5 {[%emt 0:00:28]} 15. Nxd4 {[%emt 0:01:24]} exd4 {[%emt 0:00:08]} 16. Rxd4 {[%emt 0:00:14]} Qb6 {[%emt 0:07:54]} 17. Rxd7 {[%emt 0:09:41]} Kxd7 {[%emt 0:00:49]} 18. Be2 {[%emt 0:00:39]} Ke8 {[%emt 0:11:54]} 19. Bg4 {[%emt 0:00:41]} Rd8 {[%emt 0:05:47]} 20. Qc3 {[%emt 0:02:03]} Rd3 {[%emt 0:03:21]} 21. Nxf6+ {[%emt 0:01:40]} Bxf6 {[%emt 0:00:08]} 22. Qxf6 {[%emt 0:00:11]} Qxf6 {[%emt 0:00:12]} 23. Bxf6 {[%emt 0:00:06]} Rg8 {[%emt 0:00:11]} 24. Re1+ {[%emt 0:00:57]} Kf8 {[%emt 0:00:06]} 25. Be7+ {[%emt 0:00:07]} Kg7 {[%emt 0:00:22]} 26. Re5 {[%emt 0:00:34]} Re8 {[%emt 0:06:17]} 27. Rg5+ {[%emt 0:01:24]} Kh6 {[%emt 0:00:07]} 28. Rh5+ {[%emt 0:00:07]} Kg6 {[%emt 0:02:50]} 29. Rg5+ {[%emt 0:53:03] Kg7} 1/2-1/2

[Event "94th FRA-ch 2019"]
[Site "Chartres"]
[Date "2019.08.25"]
[Round "9.4"]
[White "Moussard, Jules"]
[Black "Favarel, Julien"]
[Result "1-0"]
[ECO "C67"]
[WhiteElo "2595"]
[BlackElo "2333"]
[Annotator "ChessBase"]
[PlyCount "131"]
[EventDate "2019.08.17"]
[EventType "tourn"]
[EventCountry "FRA"]
[SourceTitle "playchess.com"]
[Source "ChessBase"]
[SourceQuality "1"]
[TimeControl "40/5400+30:1800+30"]

1. e4 {[%emt 0:00:00]} e5 {[%emt 0:00:00]} 2. Nf3 {[%emt 0:00:00]} Nc6 {[%emt 0:00:00]} 3. Bb5 {[%emt 0:00:39]} Nf6 {[%emt 0:00:37]} 4. O-O {[%emt 0:00:50]} Nxe4 {[%emt 0:00:15]} 5. d4 {[%emt 0:00:05]} Nd6 {[%emt 0:00:36]} 6. dxe5 {[%emt 0:00:32]} Nxb5 {[%emt 0:00:18]} 7. a4 {[%emt 0:00:04]} Nbd4 {[%emt 0:00:29]} 8. Nxd4 {[%emt 0:00:06]} Nxd4 {[%emt 0:00:06]} 9. Qxd4 {[%emt 0:00:04]} d5 {[%emt 0:00:46]} 10. Qd3 {[%emt 0:00:13]} Be7 {[%emt 0:04:37]} 11. Qg3 {[%emt 0:00:31]} g6 {[%emt 0:03:14]} 12. Bh6 {[%emt 0:02:32]} Bf5 {[%emt 0:08:44]} 13. Nd2 {[%emt 0:02:38]} Qd7 {[%emt 0:05:32]} 14. c3 {[%emt 0:02:28]} O-O-O {[%emt 0:03:06]} 15. Nb3 {[%emt 0:16:01]} g5 {[%emt 0:19:34]} 16. f4 {[%emt 0:06:19]} gxf4 {[%emt 0:04:40]} 17. Qxf4 {[%emt 0:01:58]} Be4 {[%emt 0:05:14]} 18. Nd2 {[%emt 0:01:08]} Bg6 {[%emt 0:02:01]} 19. Bg7 {[%emt 0:07:41]} Rhg8 {[%emt 0:01:41]} 20. Bf6 {[%emt 0:00:17]} Bxf6 {[%emt 0:04:05]} 21. exf6 {[%emt 0:00:40]} d4 {[%emt 0:03:21]} 22. Nf3 {[%emt 0:00:39]} dxc3 {[%emt 0:06:38]} 23. bxc3 {[%emt 0:00:04]} Qf5 {[%emt 0:09:56]} 24. Qe3 {[%emt 0:01:12]} Qxf6 {[%emt 0:00:34]} 25. Qxa7 {[%emt 0:00:30]} Qb6+ {[%emt 0:00:13]} 26. Qxb6 {[%emt 0:00:03]} cxb6 {[%emt 0:00:05]} 27. Nd4 {[%emt 0:01:00]} Rge8 {[%emt 0:02:48]} 28. Rf6 {[%emt 0:00:53]} Re3 {[%emt 0:00:38]} 29. Rc1 {[%emt 0:00:09]} Kc7 {[%emt 0:01:12]} 30. Rd1 {[%emt 0:03:07]} Kc8 {[%emt 0:02:52]} 31. Rc1 {[%emt 0:00:02]} Kc7 {[%emt 0:00:05]} 32. Kf2 {[%emt 0:00:03]} Rde8 {[%emt 0:01:21]} 33. h4 {[%emt 0:10:14]} h5 {[%emt 0:02:24]} 34. Rd1 {[%emt 0:02:49]} Kb8 {[%emt 0:02:35]} 35. Rf3 {[%emt 0:00:20]} R3e4 {[%emt 0:02:25]} 36. g3 {[%emt 0:00:09]} R4e5 {[%emt 0:00:55]} 37. Rd2 {[%emt 0:00:35]} Rd5 {[%emt 0:03:19]} 38. Rb2 {[%emt 0:00:56]} Rd6 {[%emt 0:00:26]} 39. Re3 {[%emt 0:01:05]} Rxe3 {[%emt 0:00:50]} 40. Kxe3 {[%emt 0:00:01]} Kc8 {[%emt 0:01:01]} 41. Rb5 {[%emt 0:32:14]} Rd8 {[%emt 0:08:53]} 42. Rxb6 {[%emt 0:00:00]} Re8+ {[%emt 0:00:14]} 43. Kf2 {[%emt 0:00:00]} Kc7 {[%emt 0:01:58]} 44. Rb4 {[%emt 0:00:00]} Ra8 {[%emt 0:02:58]} 45. Ke3 {[%emt 0:00:00]} Re8+ {[%emt 0:01:04]} 46. Kd2 {[%emt 0:00:00]} Rd8 {[%emt 0:01:47]} 47. Rb5 {[%emt 0:00:00]} b6 {[%emt 0:00:36]} 48. a5 {[%emt 0:00:00]} bxa5 {[%emt 0:00:23]} 49. Rxa5 {[%emt 0:00:00]} Rb8 {[%emt 0:00:31]} 50. c4 {[%emt 0:00:00]} Rg8 {[%emt 0:02:41]} 51. Ne2 {[%emt 0:00:00]} Rd8+ {[%emt 0:01:16]} 52. Ke3 {[%emt 0:00:00]} Re8+ {[%emt 0:00:42]} 53. Kf3 {[%emt 0:00:00]} Re4 {[%emt 0:00:37]} 54. Ra4 {[%emt 0:00:00]} Kd7 {[%emt 0:03:04]} 55. Ra7+ {[%emt 0:00:00]} Ke8 {[%emt 0:00:57]} 56. Rc7 {[%emt 0:00:00]} Kd8 {[%emt 0:01:05]} 57. Rc5 {[%emt 0:00:00]} Ke7 {[%emt 0:00:23]} 58. Nf4 {[%emt 0:00:00]} Rd4 {[%emt 0:00:18]} 59. Ne2 {[%emt 0:01:05]} Re4 {[%emt 0:02:01]} 60. Nc3 {[%emt 0:00:13]} Rd4 {[%emt 0:00:11]} 61. Nb5 {[%emt 0:00:14]} Rd1 {[%emt 0:00:52]} 62. Ke3 {[%emt 0:03:54]} Rc1 {[%emt 0:03:37]} 63. Nd4 {[%emt 0:00:23]} Rc3+ {[%emt 0:02:31]} 64. Kf4 {[%emt 0:00:03]} Bd3 {[%emt 0:00:36]} 65. Re5+ {[%emt 0:00:27]} Kd6 {[%emt 0:01:14]} 66. Nb5+ {[%emt 0:00:06]} 1-0